fUST/lending_fUST_20250724
["ID","MTS","AMOUNT","RATE_DAILY","PERIOD"]
[374579593,1753361470107,-1655.9,0.00025205,4]
[374579594,1753361470117,-2936.37,0.00025205,2]
[374579595,1753361470127,-1289.01,0.00025205,2]
[374579596,1753361470139,-849.86,0.00025205,2]
[374579597,1753361470150,-2616.6,0.00025205,2]
[374579598,1753361470161,-2502.37,0.00025205,2]
[374579599,1753361470171,-1164.14,0.00025205,2]
[374579600,1753361470181,-1050.05,0.00025205,2]
[374579601,1753361470191,-151.0,0.00025206,2]
[374579602,1753361470200,-497.23984541,0.00025206,2]
[374579603,1753361470210,-151.0,0.00025206,2]
[374579604,1753361470220,-500.0,0.00025206,2]
[374579605,1753361470229,-173.7533436,0.00025206,2]
[374579606,1753361470239,-151.0,0.00025206,2]
[374579607,1753361470249,-151.0,0.00025206,2]
[374579608,1753361470259,-151.0,0.00025206,2]
[374579609,1753361470270,-151.0,0.00025206,2]
[374579610,1753361470280,-712.0,0.00025206,2]
[374579611,1753361470291,-151.0,0.00025206,2]
[374579612,1753361470301,-151.0,0.00025206,2]
[374579613,1753361470310,-589.0,0.00025206,2]
[374579614,1753361470320,-519.0,0.00025206,2]
[374579615,1753361470329,-1674.18014597,0.0002521,12]
[374579616,1753361470339,-500.0,0.0002522,5]
[374579617,1753361470349,-484.65292561,0.0002522,5]
[374579618,1753361470359,-500.0,0.0002522,5]
[374579619,1753361470370,-809.0,0.00025224,2]
[374579620,1753361470380,-716.77,0.00025225,3]
[374579621,1753361470392,-155.497015,0.0002526,7]
[374579622,1753361470402,-155.497014,0.0002526,7]
[374579623,1753361470412,-229.622132,0.00025265,7]
[374579624,1753361470422,-229.622132,0.00025265,7]
[374579625,1753361470432,-295.0,0.00025265,2]
[374579626,1753361470442,-809.0,0.00025268,2]
[374579627,1753361470455,-151.0,0.00025278,7]
[374579628,1753361470465,-596.0,0.00025285,2]
[374579629,1753361470474,-295.0,0.00025302,2]
[374579630,1753361470483,-716.77,0.00025325,3]
[374579631,1753361470494,-155.497015,0.00025334,10]
[374579632,1753361470503,-155.497014,0.00025334,10]
[374579633,1753361470514,-500.0,0.00025343,2]
[374579634,1753361470524,-1210.42661486,0.00025358,14]
[374579635,1753361470534,-809.0,0.00025362,2]
[374579636,1753361470544,-1674.18014597,0.00025383,13]
[374579637,1753361470555,-265.88456767,0.00025385,2]
[374579638,1753361470564,-991.2,0.000254,7]
[374579639,1753361470574,-6716.25,0.000254,7]
[374579640,1753361470583,-500.0,0.0002542,5]
[374579641,1753361470593,-317.01409442,0.00025421,2]
[374579642,1753361470602,-716.77,0.00025425,3]
[374579643,1753361470612,-151.67426413,0.00025432,2]
[374579644,1753361470622,-155.497015,0.0002544,3]
[374579645,1753361470631,-155.497014,0.0002544,3]
[374579646,1753361470642,-5000.0,0.00025445,3]
[374579647,1753361470651,-500.0,0.00025448,2]
[374579648,1753361470661,-151.0,0.00025456,7]
[374579649,1753361470671,-151.0,0.00025456,7]
[374579650,1753361470680,-219.205835,0.00025456,7]
[374579651,1753361470690,-219.205835,0.00025456,7]
[374579652,1753361470699,-168.0,0.00025456,2]
[374579653,1753361470710,-151.0,0.00025465,7]
[374579654,1753361470719,-151.0,0.00025465,7]
[374579655,1753361470729,-151.0,0.00025465,7]
[374579656,1753361470738,-151.0,0.00025465,7]
[374579657,1753361470747,-151.0,0.00025465,7]
[374579658,1753361470757,-151.0,0.00025465,7]
[374579659,1753361470766,-151.0,0.00025465,7]
[374579660,1753361470776,-151.0,0.00025465,7]
[374579661,1753361470785,-151.0,0.00025465,7]
[374579662,1753361470795,-151.0,0.00025465,7]
[374579663,1753361470804,-151.0,0.00025465,7]
[374579664,1753361470814,-151.0,0.00025465,7]
[374579665,1753361470823,-151.0,0.00025465,7]
[374579666,1753361470832,-900.0,0.00025469,3]
[374579667,1753361470842,-16279.32256705,0.0002547,2]
[374579668,1753361470851,-151.0,0.00025478,7]
[374579669,1753361470861,-151.0,0.00025478,7]
[374579670,1753361470871,-151.0,0.00025478,7]
[374579671,1753361470880,-151.0,0.00025478,7]
[374579672,1753361470893,-281.108876,0.00025478,7]
[374579673,1753361470902,-151.0,0.00025478,7]
[374579674,1753361470912,-151.0,0.00025478,7]
[374579675,1753361470921,-151.0,0.00025478,7]
[374579676,1753361470931,-151.0,0.00025478,7]
[374579677,1753361470940,-151.0,0.00025478,7]
[374579678,1753361470950,-151.0,0.00025478,7]
[374579679,1753361470959,-151.0,0.00025478,7]
[374579680,1753361470968,-295.22843,0.00025478,7]
[374579681,1753361470977,-737.26008705,0.00025479,2]
[374579682,1753361470987,-180.69798566,0.00025479,2]
[374579683,1753361470997,-266.0,0.00025479,2]
[374579684,1753361471007,-1581.18682008,0.00025479,2]
[374579685,1753361471016,-1484.60735245,0.00025479,2]
[374579686,1753361471026,-738.17372059,0.00025479,2]
[374579687,1753361471035,-789.37007347,0.00025479,2]
[374579688,1753361471045,-843.15598383,0.00025479,2]
[374579689,1753361471055,-1729.35293408,0.00025479,2]
[374579690,1753361471064,-515.57107963,0.00025479,2]
[374579691,1753361471074,-462.79,0.00025479,2]
[374579692,1753361471083,-534.59,0.00025479,2]
[374579693,1753361471094,-233.23,0.00025479,2]
[374579694,1753361471104,-474.86475925,0.00025479,2]
[374579695,1753361471114,-613.88013579,0.00025479,2]
[374579696,1753361471124,-494.26,0.00025479,2]
[374579697,1753361471134,-710.44166782,0.00025479,2]
[374579698,1753361471149,-4098.54057566,0.00025479,2]
[374579699,1753361471159,-1354.41637176,0.00025479,2]
[374579700,1753361471170,-557.86,0.00025479,2]
[374579701,1753361471180,-608.91426585,0.00025479,2]
[374579702,1753361471190,-716.17264225,0.00025479,2]
[374579703,1753361471200,-2936.51858452,0.00025479,2]
[374579704,1753361471209,-1289.18174619,0.00025479,2]
[374579705,1753361471219,-850.03077693,0.00025479,2]
[374579706,1753361471230,-2616.64265168,0.00025479,2]
[374579707,1753361471239,-2502.40161149,0.00025479,2]
[374579708,1753361471249,-1164.25793158,0.00025479,2]
[374579709,1753361471259,-1050.22903517,0.00025479,2]
[374579710,1753361471268,-151.0,0.0002548,2]
[374579711,1753361471277,-151.0,0.0002548,2]
[374579712,1753361471291,-166.59386987,0.0002548,2]
[374579713,1753361471308,-151.0,0.0002548,2]
[374579714,1753361471317,-151.0,0.0002548,2]
[374579715,1753361471326,-179.3227898,0.0002548,2]
[374579716,1753361471336,-151.0,0.0002548,2]
[374579717,1753361471346,-712.0,0.0002548,2]
[374579718,1753361471357,-151.98645579,0.0002548,2]
[374579719,1753361471367,-151.0,0.0002548,2]
[374579720,1753361471377,-589.0,0.0002548,2]
[374579721,1753361471387,-519.0,0.0002548,2]
[374579722,1753361471398,-151.0,0.00025483,7]
[374579723,1753361471408,-151.0,0.00025483,7]
[374579724,1753361471417,-151.0,0.00025483,7]
[374579725,1753361471427,-151.0,0.00025483,7]
[374579726,1753361471437,-151.0,0.00025483,7]
[374579727,1753361471449,-151.0,0.00025483,7]
[374579728,1753361471458,-151.0,0.00025483,7]
[374579729,1753361471468,-256.524763,0.00025483,7]
[374579730,1753361471478,-151.0,0.00025483,7]
[374579731,1753361471487,-151.0,0.00025483,7]
[374579732,1753361471497,-151.0,0.00025483,7]
[374579733,1753361471506,-151.0,0.00025483,7]
[374579734,1753361471516,-151.0,0.00025483,7]
[374579735,1753361471526,-282.200845,0.00025483,7]
[374579736,1753361471537,-151.0,0.00025483,7]
[374579737,1753361471547,-151.0,0.00025483,7]
[374579738,1753361471557,-166.67,0.00025485,7]
[374579739,1753361471567,-6919.09713743,0.00025485,2]
[374579740,1753361471576,-1249776.11806367,0.00025485,20]
[374579741,1753361471594,-3555.19720069,0.00025485,20]
[374579742,1753361471611,-460.0,0.00023561,2]
[374579743,1753361471620,-1653583.13531626,0.00025485,20]
[374579744,1753361473179,-543.5,0.00019178,2]
[374579745,1753361473189,-543.5,0.00019452,2]
[374579746,1753361473199,-543.5,0.00019726,2]
[374579747,1753361473208,-543.5,0.0002,2]
[374579748,1753361473218,-330.47125509,0.00020273,2]
[374579749,1753361473538,-460.0,0.00019178,2]
[374579750,1753361473551,-264.12109071,0.00019178,2]
[374579751,1753361473563,-72.60021086,0.00019178,2]
[374579770,1753362111790,-300.0,0.00019176,2]
[374579771,1753362112318,-548.86437709,0.00019177,2]
[374579772,1753362112344,-280.93010601,0.00019177,2]
[374579773,1753362112368,-500.0,0.00019177,2]
[374579774,1753362112392,-380.83292651,0.00019177,2]
[374579775,1753362112413,-500.0,0.00019177,2]
[374579776,1753362112433,-461.36614137,0.00019178,2]
[374579777,1753362112454,-461.30363361,0.00019178,2]
[374579778,1753362112476,-460.0,0.00019178,2]
[374579779,1753362112496,-460.0,0.00019178,2]
[374579780,1753362112518,-460.0,0.00019178,2]
[374579781,1753362112538,-460.0,0.00019178,2]
[374579782,1753362112558,-460.0,0.00019178,2]
[374579783,1753362112579,-460.0,0.00019178,2]
[374579784,1753362112600,-460.0,0.00019178,2]
[374579785,1753362112621,-500.0,0.00019178,2]
[374579786,1753362112644,-461.33540399,0.00019178,2]
[374579787,1753362112667,-460.0,0.00019178,2]
[374579788,1753362112689,-460.0,0.00019178,2]
[374579789,1753362112711,-460.86123674,0.00019178,2]
[374579790,1753362112732,-460.0,0.00019178,2]
[374579791,1753362112754,-1000.0,0.00019178,2]
[374579792,1753362112776,-460.0,0.00019178,2]
[374579793,1753362112797,-460.0,0.00019178,2]
[374579794,1753362112819,-461.07185386,0.00019178,2]
[374579795,1753362112841,-460.0,0.00019178,2]
[374579796,1753362112863,-460.0,0.00019178,2]
[374579797,1753362112886,-460.0,0.00019178,2]
[374579798,1753362112909,-460.0,0.00019178,2]
[374579799,1753362113106,-460.0,0.00019178,2]
[374579800,1753362113129,-460.0,0.00019178,2]
[374579801,1753362113150,-460.0,0.00019178,2]
[374579802,1753362113172,-460.0,0.00019178,2]
[374579803,1753362113194,-460.0,0.00019178,2]
[374579804,1753362113216,-460.0,0.00019178,2]
[374579805,1753362113238,-460.0,0.00019178,2]
[374579806,1753362113260,-460.0,0.00019178,2]
[374579807,1753362113281,-460.0,0.00019178,2]
[374579808,1753362113303,-460.0,0.00019178,2]
[374579809,1753362113323,-487.22409962,0.00019178,2]
[374579810,1753362113344,-460.0,0.00019178,2]
[374579811,1753362113365,-460.0,0.00019178,2]
[374579812,1753362113386,-460.0,0.00019178,2]
[374579813,1753362113406,-460.0,0.00019178,2]
[374579814,1753362113428,-460.0,0.00019178,2]
[374579815,1753362113449,-460.0,0.00019178,2]
[374579816,1753362113470,-460.0,0.00019178,2]
[374579817,1753362113491,-460.0,0.00019178,2]
[374579818,1753362113512,-460.0,0.00019178,2]
[374579819,1753362113534,-460.0,0.00019178,2]
[374579820,1753362113555,-460.0,0.00019178,2]
[374579821,1753362113576,-500.0,0.00019178,2]
[374579822,1753362113597,-500.0,0.00019178,2]
[374579823,1753362113619,-500.0,0.00019178,2]
[374579824,1753362113643,-460.0,0.00019178,2]
[374579825,1753362113666,-460.0,0.00019178,2]
[374579826,1753362113689,-460.0,0.00019178,2]
[374579827,1753362113712,-460.0,0.00019178,2]
[374579828,1753362113735,-460.0,0.00019178,2]
[374579829,1753362113758,-460.0,0.00019178,2]
[374579830,1753362113780,-460.0,0.00019178,2]
[374579831,1753362113803,-460.0,0.00019178,2]
[374579832,1753362113824,-460.0,0.00019178,2]
[374579833,1753362113846,-460.0,0.00019178,2]
[374579834,1753362113874,-76.2102212,0.00019178,2]
[374579859,1753362158100,11006.0248433,0.00018,2]
[374579860,1753362158124,3450.787653,0.00018,2]
[374579861,1753362158147,5000.0,0.00018,2]
[374579862,1753362158174,10000.0,0.00018,2]
[374579863,1753362158197,10000.0,0.00018,2]
[374579864,1753362158222,3812.1347957,0.00018,2]
[374579885,1753362295818,-500.0,0.00018127,2]
[374579886,1753362295840,-500.0,0.00019081,2]
[374579887,1753362295864,-300.0,0.00019177,2]
[374579888,1753362295886,-383.7897788,0.00019178,2]
[374579889,1753362295909,-460.0,0.00019178,2]
[374579890,1753362295931,-460.0,0.00019178,2]
[374579891,1753362295953,-460.0,0.00019178,2]
[374579892,1753362295974,-460.0,0.00019178,2]
[374579893,1753362295996,-460.0,0.00019178,2]
[374579894,1753362296018,-460.0,0.00019178,2]
[374579895,1753362296042,-460.0,0.00019178,2]
[374579896,1753362296065,-460.0,0.00019178,2]
[374579897,1753362296087,-460.0,0.00019178,2]
[374579898,1753362296110,-463.66979678,0.00019178,2]
[374579899,1753362296132,-460.0,0.00019178,2]
[374579900,1753362296154,-460.0,0.00019178,2]
[374579901,1753362296176,-460.0,0.00019178,2]
[374579902,1753362296198,-332.54042442,0.00019178,2]
[374579903,1753362316893,1000.0,0.00023,30]
[374579904,1753362335127,-904.0,0.00019177,2]
[374579905,1753362335152,-300.0,0.00019177,2]
[374579906,1753362335174,-127.45957558,0.00019178,2]
[374579907,1753362335196,-175.92363714,0.00019178,2]
[374579908,1753362425150,-803.06843524,0.00019177,2]
[374579909,1753362428097,-203.3060952,0.00019177,2]
[374579910,1753362428118,-238.36888692,0.00019177,2]
[374579911,1753362432089,-61.63111308,0.00019177,2]
[374579912,1753362432112,-460.0,0.00019178,2]
[374579913,1753362432134,-460.0,0.00019178,2]
[374579914,1753362432155,-462.36033899,0.00019178,2]
[374579915,1753362432176,-445.98079867,0.00019178,2]
[374579916,1753362432197,-460.0,0.00019178,2]
[374579917,1753362432218,-320.93819522,0.00019178,2]
[374579922,1753362587923,-853.13780558,0.00019078,2]
[374579923,1753362587967,-300.0,0.00019177,2]
[374579924,1753362602482,300.0,0.00019177,2]
[374579925,1753362608978,159.372972,0.00013699,2]
[374579928,1753362632561,-69.95703349,0.00019178,2]
[374579929,1753362632571,-460.0,0.00019178,2]
[374579930,1753362632581,-462.31238432,0.00019178,2]
[374579932,1753362632591,-460.0,0.00019178,2]
[374579933,1753362632603,-440.6947472,0.00019178,2]
[374580007,1753362638370,-19.3052528,0.00019178,2]
[374580008,1753362638380,-460.0,0.00019178,2]
[374580009,1753362638390,-460.0,0.00019178,2]
[374580010,1753362638400,-460.0,0.00019178,2]
[374580011,1753362638410,-460.0,0.00019178,2]
[374580012,1753362638422,-460.0,0.00019178,2]
[374580013,1753362638432,-460.0,0.00019178,2]
[374580014,1753362638441,-460.0,0.00019178,2]
[374580015,1753362638451,-460.0,0.00019178,2]
[374580016,1753362638461,-460.0,0.00019178,2]
[374580017,1753362638470,-460.0,0.00019178,2]
[374580018,1753362638481,-460.0,0.00019178,2]
[374580019,1753362638490,-465.05169959,0.00019178,2]
[374580020,1753362638500,-460.0,0.00019178,2]
[374580021,1753362638509,-460.0,0.00019178,2]
[374580022,1753362638519,-460.0,0.00019178,2]
[374580023,1753362638528,-460.0,0.00019178,2]
[374580024,1753362638538,-395.43814678,0.00019178,2]
[374580025,1753362638547,-460.0,0.00019178,2]
[374580026,1753362638557,-460.0,0.00019178,2]
[374580027,1753362638567,-461.21448132,0.00019178,2]
[374580028,1753362638576,-460.0,0.00019178,2]
[374580029,1753362638586,-161.76201462,0.00019178,2]
[374580030,1753362638595,-460.0,0.00019178,2]
[374580031,1753362638606,-460.0,0.00019178,2]
[374580032,1753362638616,-460.0,0.00019178,2]
[374580033,1753362638626,-460.0,0.00019178,2]
[374580034,1753362638636,-460.0,0.00019178,2]
[374580035,1753362638646,-460.0,0.00019178,2]
[374580036,1753362638657,-460.0,0.00019178,2]
[374580037,1753362638667,-460.0,0.00019178,2]
[374580038,1753362638680,-460.0,0.00019178,2]
[374580039,1753362638689,-93.09111545,0.00019178,2]
[374580040,1753362638708,-372.00289012,0.00019178,2]
[374580041,1753362638718,-460.0,0.00019178,2]
[374580042,1753362638727,-461.7469938,0.00019178,2]
[374580043,1753362638737,-460.0,0.00019178,2]
[374580044,1753362638747,-460.0,0.00019178,2]
[374580045,1753362638756,-460.0,0.00019178,2]
[374580046,1753362638766,-460.0,0.00019178,2]
[374580047,1753362638775,-460.0,0.00019178,2]
[374580048,1753362638784,-460.0,0.00019178,2]
[374580049,1753362638794,-460.0,0.00019178,2]
[374580050,1753362638803,-460.0,0.00019178,2]
[374580051,1753362638812,-460.0,0.00019178,2]
[374580052,1753362638823,-368.44174212,0.00019178,2]
[374580053,1753362638838,-460.0,0.00019178,2]
[374580054,1753362638847,-460.0,0.00019178,2]
[374580055,1753362638858,-461.37575409,0.00019178,2]
[374580056,1753362638869,-460.0,0.00019178,2]
[374580057,1753362638879,-460.0,0.00019178,2]
[374580058,1753362638888,-460.0,0.00019178,2]
[374580059,1753362638898,-463.1547138,0.00019178,2]
[374580060,1753362638908,-463.46793694,0.00019178,2]
[374580061,1753362638918,-460.0,0.00019178,2]
[374580062,1753362638930,-460.0,0.00019178,2]
[374580063,1753362638940,-460.0,0.00019178,2]
[374580064,1753362638949,-460.0,0.00019178,2]
[374580065,1753362638959,-460.0,0.00019178,2]
[374580066,1753362638969,-460.0,0.00019178,2]
[374580067,1753362638981,-525.63482762,0.00019178,2]
[374580068,1753362638991,-460.0,0.00019178,2]
[374580069,1753362639002,-460.0,0.00019178,2]
[374580070,1753362639012,-460.0,0.00019178,2]
[374580071,1753362639021,-460.0,0.00019178,2]
[374580072,1753362639031,-460.0,0.00019178,2]
[374580073,1753362639041,-460.0,0.00019178,2]
[374580074,1753362639051,-460.0,0.00019178,2]
[374580075,1753362639065,-460.0,0.00019178,2]
[374580076,1753362639074,-460.0,0.00019178,2]
[374580077,1753362639084,-460.0,0.00019178,2]
[374580078,1753362639093,-460.0,0.00019178,2]
[374580079,1753362639105,-460.0,0.00019178,2]
[374580080,1753362639114,-460.0,0.00019178,2]
[374580081,1753362639123,-460.0,0.00019178,2]
[374580082,1753362639133,-460.0,0.00019178,2]
[374580083,1753362639142,-568.79664235,0.00019178,2]
[374580084,1753362639152,-460.0,0.00019178,2]
[374580085,1753362639162,-460.0,0.00019178,2]
[374580086,1753362639173,-460.0,0.00019178,2]
[374580087,1753362639183,-463.61325076,0.00019178,2]
[374580088,1753362639192,-460.0,0.00019178,2]
[374580089,1753362639202,-460.0,0.00019178,2]
[374580090,1753362639212,-460.0,0.00019178,2]
[374580091,1753362639222,-460.0,0.00019178,2]
[374580092,1753362639232,-460.0,0.00019178,2]
[374580093,1753362639241,-460.0,0.00019178,2]
[374580094,1753362639251,-460.0,0.00019178,2]
[374580095,1753362639261,-460.0,0.00019178,2]
[374580096,1753362639271,-460.0,0.00019178,2]
[374580097,1753362639281,-460.0,0.00019178,2]
[374580098,1753362639291,-460.0,0.00019178,2]
[374580099,1753362639300,-460.0,0.00019178,2]
[374580100,1753362639310,-460.0,0.00019178,2]
[374580101,1753362639319,-460.0,0.00019178,2]
[374580102,1753362639329,-461.09644263,0.00019178,2]
[374580103,1753362639339,-460.0,0.00019178,2]
[374580104,1753362639348,-460.0,0.00019178,2]
[374580105,1753362639358,-460.0,0.00019178,2]
[374580106,1753362639367,-460.0,0.00019178,2]
[374580107,1753362639376,-460.0,0.00019178,2]
[374580108,1753362639385,-460.0,0.00019178,2]
[374580109,1753362639395,-460.0,0.00019178,2]
[374580110,1753362639404,-460.0,0.00019178,2]
[374580111,1753362639414,-460.0,0.00019178,2]
[374580112,1753362639426,-460.0,0.00019178,2]
[374580113,1753362639435,-462.07952192,0.00019178,2]
[374580114,1753362639444,-460.0,0.00019178,2]
[374580115,1753362639454,-460.0,0.00019178,2]
[374580116,1753362639464,-460.8137422,0.00019178,2]
[374580117,1753362639473,-460.0,0.00019178,2]
[374580118,1753362639483,-460.0,0.00019178,2]
[374580119,1753362639493,-460.0,0.00019178,2]
[374580120,1753362639502,-460.0,0.00019178,2]
[374580121,1753362639512,-460.0,0.00019178,2]
[374580122,1753362639521,-460.0,0.00019178,2]
[374580123,1753362639531,-168.82454538,0.00019178,2]
[374580124,1753362639540,-460.0,0.00019178,2]
[374580125,1753362639549,-460.0,0.00019178,2]
[374580126,1753362639559,-460.0,0.00019178,2]
[374580127,1753362639568,-460.0,0.00019178,2]
[374580128,1753362639577,-460.0,0.00019178,2]
[374580129,1753362639587,-460.0,0.00019178,2]
[374580130,1753362639596,-460.0,0.00019178,2]
[374580131,1753362639606,-460.0,0.00019178,2]
[374580132,1753362639615,-460.0,0.00019178,2]
[374580133,1753362639624,-460.0,0.00019178,2]
[374580134,1753362639634,-460.0,0.00019178,2]
[374580135,1753362639643,-460.0,0.00019178,2]
[374580136,1753362639653,-460.0,0.00019178,2]
[374580137,1753362639662,-460.0,0.00019178,2]
[374580138,1753362639674,-460.0,0.00019178,2]
[374580139,1753362639683,-460.0,0.00019178,2]
[374580140,1753362639693,-460.0,0.00019178,2]
[374580141,1753362639705,-460.0,0.00019178,2]
[374580142,1753362639715,-158.40065603,0.00019178,2]
[374580143,1753362639724,-460.0,0.00019178,2]
[374580144,1753362639734,-460.0,0.00019178,2]
[374580145,1753362639743,-460.0,0.00019178,2]
[374580146,1753362639752,-467.28698505,0.00019178,2]
[374580147,1753362639762,-474.92865728,0.00019178,2]
[374580148,1753362639771,-460.0,0.00019178,2]
[374580149,1753362639781,-460.0,0.00019178,2]
[374580150,1753362639790,-460.0,0.00019178,2]
[374580151,1753362639799,-460.0,0.00019178,2]
[374580152,1753362639810,-460.0,0.00019178,2]
[374580153,1753362639820,-460.0,0.00019178,2]
[374580154,1753362639829,-460.0,0.00019178,2]
[374580155,1753362639839,-460.0,0.00019178,2]
[374580156,1753362639849,-460.0,0.00019178,2]
[374580157,1753362639858,-460.0,0.00019178,2]
[374580158,1753362639868,-460.0,0.00019178,2]
[374580159,1753362639877,-460.0,0.00019178,2]
[374580160,1753362639887,-460.0,0.00019178,2]
[374580161,1753362639897,-460.0,0.00019178,2]
[374580162,1753362639906,-460.0,0.00019178,2]
[374580163,1753362639916,-460.0,0.00019178,2]
[374580164,1753362639927,-460.0,0.00019178,2]
[374580165,1753362639937,-461.81938326,0.00019178,2]
[374580166,1753362639947,-460.0,0.00019178,2]
[374580167,1753362639956,-460.92902991,0.00019178,2]
[374580168,1753362639966,-460.0,0.00019178,2]
[374580169,1753362639976,-460.0,0.00019178,2]
[374580170,1753362639986,-460.0,0.00019178,2]
[374580171,1753362639995,-460.0,0.00019178,2]
[374580172,1753362640005,-325.61252337,0.00019178,2]
[374580173,1753362640027,-460.0,0.00019178,2]
[374580174,1753362640039,-460.0,0.00019178,2]
[374580176,1753362640049,-460.0,0.00019178,2]
[374580177,1753362640061,-460.0,0.00019178,2]
[374580178,1753362640071,-460.0,0.00019178,2]
[374580179,1753362640080,-460.0,0.00019178,2]
[374580180,1753362640090,-462.33156711,0.00019178,2]
[374580181,1753362640101,-460.0,0.00019178,2]
[374580182,1753362640111,-281.29551987,0.00019178,2]
[374580183,1753362640121,-462.37691092,0.00019178,2]
[374580184,1753362640131,-460.0,0.00019178,2]
[374580185,1753362640151,-460.0,0.00019178,2]
[374580186,1753362640166,-460.0,0.00019178,2]
[374580187,1753362640177,-461.42562307,0.00019178,2]
[374580188,1753362640187,-460.0,0.00019178,2]
[374580189,1753362640197,-460.0,0.00019178,2]
[374580190,1753362640206,-460.0,0.00019178,2]
[374580191,1753362640217,-460.28317376,0.00019178,2]
[374580192,1753362640227,-460.0,0.00019178,2]
[374580204,1753362640447,-460.0,0.00019178,2]
[374580206,1753362640457,-460.0,0.00019178,2]
[374580208,1753362640467,-460.0,0.00019178,2]
[374580210,1753362640477,-461.42526579,0.00019178,2]
[374580212,1753362640487,-460.0,0.00019178,2]
[374580214,1753362640497,-466.22532893,0.00019178,2]
[374580216,1753362640506,-460.0,0.00019178,2]
[374580218,1753362640516,-460.0,0.00019178,2]
[374580220,1753362640525,-461.27603809,0.00019178,2]
[374580221,1753362640534,-460.0,0.00019178,2]
[374580224,1753362640543,-460.0,0.00019178,2]
[374580225,1753362640553,-460.0,0.00019178,2]
[374580227,1753362640563,-460.0,0.00019178,2]
[374580229,1753362640572,-398.06750928,0.00019178,2]
[374580233,1753362640583,-460.0,0.00019178,2]
[374580235,1753362640593,-460.0,0.00019178,2]
[374580237,1753362640602,-460.0,0.00019178,2]
[374580241,1753362640612,-460.0,0.00019178,2]
[374580242,1753362640622,-524.22051939,0.00019178,2]
[374580246,1753362640633,-460.0,0.00019178,2]
[374580248,1753362640643,-460.0,0.00019178,2]
[374580251,1753362640655,-461.3858059,0.00019178,2]
[374580253,1753362640665,-492.24948373,0.00019178,2]
[374580254,1753362640676,-460.0,0.00019178,2]
[374580256,1753362640686,-460.0,0.00019178,2]
[374580258,1753362640695,-460.0,0.00019178,2]
[374580260,1753362640705,-460.0,0.00019178,2]
[374580262,1753362640714,-460.0,0.00019178,2]
[374580264,1753362640724,-460.0,0.00019178,2]
[374580266,1753362640734,-460.0,0.00019178,2]
[374580268,1753362640743,-460.0,0.00019178,2]
[374580270,1753362640752,-460.0,0.00019178,2]
[374580272,1753362640762,-460.0,0.00019178,2]
[374580274,1753362640771,-460.0,0.00019178,2]
[374580276,1753362640780,-939.98,0.00019178,2]
[374580278,1753362640790,-460.0,0.00019178,2]
[374580280,1753362640799,-460.0,0.00019178,2]
[374580282,1753362640809,-460.0,0.00019178,2]
[374580284,1753362640817,-460.0,0.00019178,2]
[374580286,1753362640826,-460.0,0.00019178,2]
[374580288,1753362640836,-1530.33,0.00019178,2]
[374580290,1753362640845,-460.0,0.00019178,2]
[374580292,1753362640855,-460.0,0.00019178,2]